bitfinex/quotes_ETHUSD_20220226
["timestamp","ask_amount","ask_price","bid_price","bid_amount"]
[1645846752748,1.49351297,2791.9,2791.1,0.32524388]
[1645846752749,1.49769784,2791.9,2791.1,0.32524388]
[1645846752951,1.49351297,2791.8,2791.1,0.32524388]
[1645846753550,1.49351297,2791.8,2791.2,1.17503697]
[1645846753752,1.49351297,2791.8,2791.1,0.32524388]
[1645846754152,0.0022202,2791.6,2791.1,0.32524388]
[1645846754370,0.0022202,2791.6,2790.9,0.19976134]
[1645846755174,1.49351297,2791.6,2791.0,1.04113332]
[1645846755370,1.11356324,2791.8,2791.0,1.21978326]
[1645846755371,0.00540033,2791.4,2791.0,1.21978326]
[1645846755769,0.00540033,2791.4,2791.0,0.17864994]
[1645846755970,0.00540033,2791.4,2790.9,0.1625613]
[1645846756171,0.00418487,2791.9,2790.9,0.1625613]
[1645846756370,1.49209698,2791.8,2790.9,0.1625613]
[1645846756571,0.00540039,2791.3,2790.9,0.1625613]
[1645846757779,0.00540051,2791.2,2790.9,0.1625613]
[1645846758645,0.00418487,2791.9,2790.9,0.16111405]
[1645846758832,0.00495772,2791.2,2790.9,0.16111405]
[1645846759434,0.00495772,2791.2,2790.8,3.14465062]
[1645846759637,0.36045772,2791.2,2790.8,3.14465062]
[1645846759834,1.4915568,2791.1,2790.8,3.13969215]
[1645846760237,1.49651457,2791.1,2790.8,3.14465059]
[1645846760538,0.00495777,2791.1,2790.8,0.00495844]
[1645846761135,0.00418487,2791.4,2790.3,2.77054554]
[1645846761334,0.00495774,2791.1,2790.8,0.0049584]
[1645846762184,0.00418487,2791.6,2790.3,2.73474972]
[1645846762384,0.00418487,2791.6,2790.4,3.5]
[1645846762585,0.00540058,2791.1,2790.8,0.00540131]
[1645846762990,1.49261742,2791.0,2790.8,0.00540131]
[1645846763189,1.84811742,2791.0,2790.8,0.00540131]
[1645846763394,1.49261742,2790.9,2790.8,0.00540131]
[1645846763887,1.49261742,2790.9,2790.8,0.00540128]
[1645846764287,1.49261742,2791.0,2790.8,0.00540128]
[1645846764688,0.3555,2790.9,2790.2,0.25]
[1645846764889,1.49261742,2790.8,2790.0,1.10672568]
[1645846765089,1.49261742,2790.8,2790.0,3.70167386]
[1645846765291,1.49261742,2790.8,2790.0,3.5]
[1645846765522,0.00540054,2791.1,2790.1,1.05971545]
[1645846765725,1.49303052,2791.0,2790.2,1.10110541]
[1645846765923,1.49303052,2791.0,2790.1,1.05971545]
[1645846766123,1.49303052,2790.9,2790.1,1.05971545]
[1645846766323,0.00521803,2791.1,2790.5,0.0052193]
[1645846766524,1.49309133,2791.0,2790.5,0.0052193]
[1645846766928,1.39437242,2790.6,2790.5,0.0052193]
[1645846767130,1.39437242,2790.6,2790.1,0.15466363]
[1645846767327,1.39437242,2790.6,2789.9,1.09090399]
[1645846767527,0.00521815,2791.1,2789.9,1.09090399]
[1645846767727,1.25226844,2791.0,2790.0,0.90505182]
[1645846767928,1.25226844,2791.0,2790.0,0.67902356]
[1645846767929,1.60776844,2791.0,2790.0,0.67902356]
[1645846768128,1.60776844,2791.0,2789.9,0.67902356]
[1645846768129,0.4988,2791.0,2789.9,0.67902356]
[1645846768332,0.3555,2790.8,2789.8,3.50307907]
[1645846768527,0.4988,2790.8,2789.8,3.50307907]
[1645846768734,0.4988,2790.8,2789.8,0.00307907]
[1645846768927,0.3555,2790.4,2789.8,0.00307907]
[1645846769573,0.3555,2790.5,2789.8,0.00307907]
[1645846769772,0.3555,2790.5,2789.6,0.67902356]
[1645846769773,0.3555,2790.5,2790.0,0.00496635]
[1645846770774,0.3555,2790.5,2789.6,0.68210263]
[1645846770976,1.40067676,2790.2,2789.8,0.00307907]
[1645846771179,1.40067676,2790.2,2790.1,0.0049662]
[1645846771873,1.40067676,2790.2,2789.6,0.00307907]
[1645846772074,1.40067676,2790.2,2789.4,0.67902356]
[1645846772275,1.40067676,2790.2,2790.0,0.0049663]
[1645846773219,1.40067676,2790.2,2789.6,0.00307907]
[1645846773420,1.75617676,2790.2,2790.0,0.00507872]
[1645846774224,0.00505716,2789.9,2789.3,0.00307907]
[1645846775022,0.00505716,2789.9,2789.2,0.4552]
[1645846775224,0.00505716,2789.9,2789.2,0.45827907]
[1645846775623,0.00505716,2789.9,2789.2,1.13730263]
[1645846777084,0.00505716,2789.9,2789.4,0.00507876]
[1645846777485,0.00505716,2789.9,2789.4,1.18234217]
[1645846777688,0.00505716,2789.9,2789.4,1.3355737]
[1645846778084,0.00505716,2789.9,2789.4,1.33049494]
[1645846778486,0.00505716,2789.9,2789.5,0.00507866]
[1645846779287,0.00505716,2789.9,2789.5,0.66418842]
[1645846779689,0.00505716,2789.9,2789.6,0.0050786]
[1645846780287,0.00505716,2789.9,2789.5,1.33813332]
[1645846780728,0.00505716,2789.9,2789.6,0.00507438]
[1645846781532,0.00505716,2789.9,2789.5,1.33813332]
[1645846781731,0.00505716,2789.9,2789.6,0.00507438]
[1645846782730,0.00505716,2789.9,2789.5,1.33813332]
[1645846782932,0.00505716,2789.9,2789.5,0.20390976]
[1645846783131,0.00505716,2789.9,2789.6,0.00507438]
[1645846783934,0.00505716,2789.9,2789.5,3.5]
[1645846784280,0.00505716,2789.9,2789.6,0.00507469]
[1645846784680,1.35745995,2789.7,2789.6,0.00507469]
[1645846785278,1.35745995,2789.7,2789.2,0.4552]
[1645846785482,1.71295995,2789.7,2789.2,0.4552]
[1645846785683,0.3555,2789.5,2788.9,0.00307907]
[1645846785890,3.8555,2789.4,2788.8,0.5]
[1645846786084,1.22166887,2789.1,2788.9,0.00307907]
[1645846786285,1.22166887,2789.1,2788.8,0.5]
[1645846786286,1.57716887,2789.1,2788.8,0.5]
[1645846786886,1.22166887,2789.1,2788.8,0.5]
[1645846787085,3.5,2789.6,2788.8,0.5]
[1645846787688,3.5,2789.6,2788.9,0.07575824]
[1645846787887,3.5,2789.6,2789.1,0.00539611]
[1645846787888,0.3555,2789.5,2789.1,0.00539611]
[1645846788114,1.17205998,2789.4,2789.1,0.00539611]
[1645846788715,1.17205998,2789.4,2788.4,0.00307907]
[1645846788917,1.17205998,2789.4,2788.4,0.75786092]
[1645846789120,1.17205998,2789.4,2789.1,0.00539606]
[1645846789922,1.17205998,2789.4,2788.4,0.85286754]
[1645846790122,1.17205998,2789.4,2788.5,0.0757541]
[1645846790326,1.17205998,2789.4,2789.1,0.00539606]
[1645846791225,1.17205998,2789.4,2788.4,0.20511733]
[1645846791419,1.17205998,2789.4,2788.5,0.07575486]
[1645846791621,1.17205998,2789.4,2789.1,0.00539606]
[1645846791873,4.7028,2789.7,2789.1,0.00539606]
[1645846792178,4.8462,2789.7,2789.1,0.00539606]
[1645846792372,4.8462,2789.7,2788.6,0.00307907]
[1645846792573,4.8462,2789.7,2788.6,0.07883302]
[1645846792774,4.8462,2789.7,2789.3,0.00539589]
[1645846792775,1.19651297,2789.5,2789.3,0.00539589]
[1645846793574,1.19651297,2789.5,2788.6,0.00307907]
[1645846793775,1.19651297,2789.5,2788.6,0.07883401]
[1645846793975,1.19651297,2789.5,2789.3,0.00539589]
[1645846794781,1.19651297,2789.5,2788.7,0.00307907]
[1645846794977,1.2028,2789.7,2788.7,0.07883264]
[1645846795178,1.2028,2789.7,2789.3,0.00539589]
[1645846795378,1.08252001,2789.7,2789.3,0.00539589]
[1645846795617,1.08252001,2789.7,2789.4,0.07574777]
[1645846796019,2.16197778,2789.7,2789.4,0.07574777]
[1645846796222,2.16197778,2789.7,2788.7,0.00307907]
[1645846796419,2.16197778,2789.7,2789.4,0.00508673]
[1645846796620,2.16197778,2789.7,2789.5,0.07574489]
[1645846797025,2.16197778,2789.7,2789.4,0.00508673]
[1645846797223,2.16197778,2789.7,2788.8,0.00307907]
[1645846797429,2.16197778,2789.7,2788.8,0.07882542]
[1645846797625,2.16197778,2789.7,2789.5,0.00508668]
[1645846798026,3.5,2789.6,2789.5,0.00508668]
[1645846798624,3.8555,2789.6,2789.5,0.00508668]
[1645846798825,3.8555,2789.6,2789.4,0.00508673]
[1645846799472,2.16197778,2789.7,2789.4,0.00508673]
[1645846799473,1.08252001,2789.7,2789.4,0.00508673]
[1645846799674,1.08252001,2789.7,2789.0,0.00307907]
[1645846799873,1.08252001,2789.7,2788.9,1.2794172]
[1645846800075,1.08252001,2789.7,2789.4,0.00475518]
[1645846800875,1.08252001,2789.7,2789.5,0.07574468]
[1645846801075,1.08252001,2789.7,2789.6,0.07574468]
[1645846801276,1.08252001,2789.7,2788.8,0.00307907]
[1645846801479,1.08252001,2789.7,2788.8,0.07882487]
[1645846801876,1.08252001,2789.7,2788.8,0.75784843]
[1645846802075,1.08252001,2789.7,2788.9,0.0757458]
[1645846802475,1.20272491,2789.6,2788.9,0.0757458]
[1645846802681,1.20272491,2789.6,2789.0,0.0757458]
[1645846802878,1.20272491,2789.6,2789.1,0.0757458]
[1645846803123,1.20272491,2789.6,2788.8,0.0757458]
[1645846803424,1.20272491,2789.6,2788.8,0.75784843]
[1645846803628,1.08252001,2789.7,2789.2,0.00510419]
[1645846803825,1.08252001,2789.7,2789.3,0.0757458]
[1645846804624,1.08252001,2789.7,2789.4,0.08100988]
[1645846804824,1.08252001,2789.7,2789.5,0.0757458]
[1645846805825,1.08252001,2789.7,2789.6,0.0757458]
[1645846807071,1.43802001,2789.7,2789.5,0.00526391]
[1645846807875,1.08252001,2789.7,2789.5,0.00526391]
[1645846808073,1.08252001,2789.7,2789.6,0.07574958]
[1645846808273,1.08252001,2789.7,2789.5,0.00300778]
[1645846808474,1.43802001,2789.7,2789.5,0.00300778]
[1645846809177,1.43802001,2789.7,2789.1,0.07575191]
[1645846809178,3.8555,2789.6,2789.1,0.07575191]
[1645846809374,0.3555,2789.6,2789.2,0.07575191]
[1645846809573,0.3555,2789.6,2789.5,0.00300778]
[1645846809973,1.84220103,2789.6,2789.5,0.00300778]
[1645846810378,1.84220103,2789.6,2788.9,0.07575191]
[1645846810635,1.84220103,2789.6,2789.0,0.07575191]
[1645846810636,0.3555,2789.6,2789.0,0.07575191]
[1645846810830,0.3555,2789.6,2789.4,0.00300784]
[1645846811529,0.3555,2789.6,2789.4,0.07875975]
[1645846811731,0.3555,2789.6,2788.7,1.05294521]
[1645846811930,3.8555,2789.6,2789.4,0.00539541]
[1645846812132,1.43802001,2789.7,2789.4,0.00539541]
[1645846812430,1.08252001,2789.7,2789.4,0.00539541]
[1645846812831,1.08252001,2789.7,2789.5,0.07575347]
[1645846813033,1.48847246,2789.6,2788.8,0.68210263]
[1645846813233,1.08252001,2789.7,2789.4,0.00539536]
[1645846813432,1.08252001,2789.7,2789.5,0.07575138]
[1645846814269,1.08252001,2789.7,2789.6,0.07575138]
[1645846815077,2.0165,2789.8,2789.6,0.07575138]
[1645846815479,2.0165,2789.8,2789.7,0.07575138]
[1645846815480,1.81485001,2789.8,2789.7,0.07575138]
[1645846815780,1.81485001,2789.8,2789.5,1.3420273]
[1645846816278,0.00505716,2789.9,2789.5,0.00539524]
[1645846816478,0.00505716,2789.9,2789.1,0.00307907]
[1645846816676,0.00505716,2789.9,2789.1,0.15952451]
[1645846816877,0.00505716,2789.9,2789.5,0.00539524]
[1645846817278,0.00505716,2789.9,2789.6,1.31707581]
[1645846817476,0.00505716,2789.9,2789.6,2.47647581]
[1645846817677,0.00505716,2789.9,2789.6,1.3538]
[1645846817678,5.716e-05,2789.9,2789.6,1.3538]
[1645846817880,5.716e-05,2789.9,2789.7,0.18129421]
[1645846818154,5.716e-05,2789.9,2789.8,17.91640324]
[1645846818353,5.716e-05,2789.9,2789.8,26.02809442]
[1645846818551,5.716e-05,2789.9,2789.8,25.17878727]
[1645846818749,5.716e-05,2789.9,2789.8,26.85488727]
[1645846818951,5.716e-05,2789.9,2789.8,26.84264099]
[1645846819251,5.716e-05,2789.9,2789.8,28.65142553]
[1645846819653,5.716e-05,2789.9,2789.8,27.67563099]
[1645846820051,5.716e-05,2789.9,2789.8,35.88600855]
[1645846820454,0.0053927,2790.9,2789.8,35.88600855]
[1645846820654,0.0053927,2790.9,2790.5,15.0464728]
[1645846820856,0.0053927,2790.9,2790.6,0.07571755]
[1645846821154,0.0053927,2790.9,2790.6,0.27149726]
[1645846821455,0.0053927,2790.9,2790.7,0.07571755]
[1645846821654,0.00539341,2790.9,2790.7,0.07571755]
[1645846822094,0.00539341,2790.9,2790.7,0.07445329]
[1645846822594,0.00539341,2790.9,2790.8,1.4834927]
[1645846822795,0.00521139,2790.9,2790.8,1.4834927]
[1645846823696,0.00418487,2791.8,2790.8,1.4834927]
[1645846823898,0.00489247,2791.0,2790.8,1.7834927]
[1645846824099,0.00489247,2791.0,2790.9,0.16550336]
[1645846824298,0.00489247,2791.0,2790.9,11.03550336]
[1645846824898,0.00418487,2791.8,2790.9,11.03550336]
[1645846825100,0.00489237,2791.1,2790.9,0.16550336]
[1645846826139,0.00418487,2791.8,2790.9,0.16550336]
[1645846826337,0.0050743,2791.1,2790.9,0.16550336]
[1645846826536,0.0050743,2791.1,2790.9,3.66550336]
[1645846826737,7.43e-05,2791.1,2791.0,0.18297608]
[1645846826939,7.43e-05,2791.1,2791.0,16.1098]
[1645846827138,0.02029416,2791.6,2791.2,10.87]
[1645846827441,0.02029416,2791.6,2791.3,3.67286194]
[1645846827737,0.00418487,2792.3,2791.3,3.67286194]
[1645846827942,0.00418487,2792.3,2791.8,1.39534059]
[1645846828139,0.3555,2792.6,2791.8,1.39534059]
[1645846828340,0.00418487,2792.5,2791.8,1.39534059]
[1645846828540,0.3555,2792.6,2791.8,1.39534059]
[1645846828942,1.40332715,2792.6,2791.8,1.39534059]
[1645846829141,1.40332715,2792.6,2791.5,0.21734051]
[1645846829381,0.00418487,2792.5,2791.3,8.66111487]
[1645846830480,0.00418487,2792.5,2791.5,1.30047758]
[1645846830682,0.00418487,2792.5,2791.5,4.95304462]
[1645846830880,0.00418487,2792.5,2791.5,5.10047758]
[1645846831087,0.00418487,2792.5,2791.6,0.21421486]
[1645846831286,0.00418487,2792.5,2791.6,3.71421486]
[1645846831485,0.00539202,2792.1,2791.6,0.21421486]
[1645846832184,0.00418487,2792.5,2791.6,0.21421486]
[1645846832384,0.00507691,2792.0,2791.6,0.21421486]
[1645846833424,0.00418487,2792.9,2791.6,0.21421486]
[1645846833622,0.00507697,2791.9,2791.6,0.21421486]
[1645846834621,0.00418487,2792.5,2791.6,0.21421486]
[1645846834822,0.00507702,2791.9,2791.6,0.21421486]
[1645846835628,0.00507702,2791.9,2791.5,3.5]
[1645846835829,0.00418487,2792.3,2791.5,3.5]
[1645846836026,0.00507702,2791.9,2791.5,3.5]
[1645846836878,0.02448992,2792.3,2791.5,3.5]
[1645846836879,0.00418487,2792.3,2791.5,3.5]
[1645846837280,0.00510482,2791.8,2791.5,3.5]
[1645846837879,0.00510482,2791.8,2791.3,3.19653429]
[1645846838082,0.00418487,2792.3,2791.3,3.36416381]
[1645846838480,0.00510488,2791.8,2791.3,3.36416381]
[1645846839280,0.00418487,2792.3,2791.3,3.36416381]
[1645846839680,0.00510499,2791.7,2791.3,3.36416381]
[1645846840530,0.02041691,2792.1,2791.3,3.36416381]
[1645846840924,0.0051024,2791.6,2791.3,3.36416381]
[1645846841630,0.0051024,2791.6,2791.3,3.19653429]
[1645846841829,0.00418487,2792.3,2791.6,0.0008]
[1645846842027,0.01979424,2792.0,2791.6,0.0008]
[1645846843128,0.00494892,2791.9,2791.6,0.0008]
[1645846844130,0.00418487,2792.3,2791.6,0.0008]
[1645846844371,0.00495805,2791.9,2791.6,0.0008]
[1645846845381,0.00418487,2792.3,2791.6,0.0008]
[1645846845677,0.00511119,2791.9,2791.6,0.0008]
[1645846846578,0.35968487,2792.6,2791.6,0.0008]
[1645846846880,0.00511119,2791.9,2791.6,0.0008]
[1645846848029,0.00510159,2791.9,2791.6,0.0008]
[1645846849022,0.00418487,2792.6,2791.6,0.0008]
[1645846849430,0.00510159,2791.9,2791.6,0.0008]
[1645846850227,0.00418487,2792.6,2791.6,0.0008]
[1645846850530,0.00510159,2791.9,2791.6,0.0008]
[1645846851028,0.00510159,2791.9,2791.6,0.17658965]
[1645846851430,0.00418487,2792.6,2791.6,0.17658965]
[1645846851630,0.00192262,2791.9,2791.6,0.17558955]
[1645846852780,0.00418487,2792.5,2791.6,0.17558955]
[1645846852982,1.5757,2792.8,2791.6,0.17558955]
[1645846852983,0.00418487,2792.7,2791.6,0.17558955]
[1645846853183,1.44240114,2792.6,2791.6,0.17558955]
[1645846853381,0.00418487,2792.5,2791.6,0.17558955]
[1645846853785,1.03832611,2792.7,2791.6,0.17558955]
[1645846854787,1.44475027,2792.6,2791.6,0.17558955]
[1645846854986,0.00418487,2792.5,2791.6,0.17558955]
[1645846855386,0.00539405,2792.3,2791.6,0.17558955]
[1645846856234,0.00418487,2792.6,2791.6,0.17558955]
[1645846856435,0.00539428,2792.1,2791.6,0.17558955]
[1645846856838,0.00539428,2792.1,2791.7,3.57568696]
[1645846857036,0.00539428,2792.1,2791.7,3.68642934]
[1645846857435,0.00418487,2792.6,2791.7,3.68642934]
[1645846857635,0.00539434,2792.0,2791.7,3.68642934]
[1645846858035,0.00539434,2792.0,2791.8,0.07568541]
[1645846858638,0.00418487,2792.6,2791.8,0.07568541]
[1645846858838,1.44973874,2792.5,2791.8,0.07568541]
[1645846859040,0.00539434,2792.0,2791.8,0.07568541]
[1645846859881,0.00418487,2792.6,2791.8,0.07568541]
[1645846860076,0.00539434,2792.0,2791.8,0.07568541]
[1645846860376,0.00539434,2792.0,2791.7,3.68642934]
[1645846860576,0.00539434,2792.0,2791.8,0.07568727]
[1645846860977,0.00418487,2792.6,2791.8,0.07568727]
[1645846861177,1.45221968,2792.5,2791.8,0.07568727]
[1645846861378,0.00539434,2792.0,2791.8,0.07568727]
[1645846862282,0.00418487,2792.6,2791.8,0.07568727]
[1645846862481,0.00539434,2792.0,2791.8,0.07568727]
[1645846863525,0.6696847,2792.6,2791.8,0.07568727]
[1645846863725,0.00539434,2792.0,2791.8,0.07568727]
[1645846863928,1.45445638,2791.9,2791.8,0.07568727]
[1645846864727,1.45445638,2791.9,2791.7,3.5]
[1645846864925,1.45445638,2791.9,2791.8,0.07569765]
[1645846865129,1.45445638,2791.9,2791.6,0.0764968]
[1645846865327,1.45445638,2791.9,2791.6,0.0008]
[1645846865528,0.3555,2791.7,2791.6,0.0008]
[1645846865733,5.30995638,2791.7,2791.6,0.0008]
[1645846866330,6.37459258,2791.7,2791.6,0.0008]
[1645846866528,2.87459258,2791.7,2791.6,0.0008]
[1645846866983,1.45445638,2791.7,2791.6,0.0008]
[1645846867287,1.45445638,2791.8,2791.6,0.0008]
[1645846867482,1.45445638,2791.7,2791.6,0.0008]
[1645846868083,2.58103267,2791.7,2791.6,0.0008]
[1645846874978,1.45445638,2791.7,2791.6,0.0008]
[1645846876182,1.45445638,2791.7,2790.8,0.6764728]
[1645846876183,6.3555,2791.6,2790.8,0.6764728]
[1645846876385,6.3555,2791.6,2790.5,3.5]
[1645846876386,0.3555,2791.1,2790.5,3.5]
[1645846876582,0.3555,2790.9,2790.5,3.5]
[1645846876783,0.3555,2790.9,2790.0,3.26072539]
[1645846877184,0.3555,2790.7,2790.4,0.00521471]
[1645846877782,0.3555,2790.7,2790.0,6.76072539]
[1645846877783,0.3555,2790.7,2789.7,1.0697728]
[1645846878034,0.3555,2790.7,2789.7,0.3933]
[1645846878230,0.3555,2790.7,2790.4,0.00521426]
[1645846878428,0.3555,2790.7,2789.7,0.57498706]
[1645846878626,0.3555,2790.7,2789.8,0.57498706]
[1645846879228,1.30981013,2790.8,2789.8,0.57498706]
[1645846879430,1.30981013,2790.8,2789.8,0.77696609]
[1645846880228,3.6433,2791.0,2789.6,0.18063597]
[1645846880229,0.3555,2790.6,2789.6,0.18063597]
[1645846880431,0.3555,2790.6,2789.4,0.18767558]
[1645846880629,0.3555,2790.6,2790.2,0.00318906]
[1645846881432,1.31239026,2790.1,2789.4,3.33936943]
[1645846881630,3.5,2790.5,2789.4,3.33936943]
[1645846881883,3.5,2790.5,2790.3,0.00539659]
[1645846882083,3.1069,2790.6,2790.3,0.00539659]
[1645846882683,1.06775187,2790.4,2789.3,6.20189704]
[1645846883283,1.06775187,2790.4,2789.3,5.2999333]
[1645846884085,3.1069,2790.6,2789.3,5.2999333]
[1645846884284,3.1069,2790.6,2789.3,1.7999333]
[1645846884485,3.1069,2790.6,2789.3,1.2999333]
[1645846884885,3.1069,2790.6,2789.3,1.48534558]
[1645846885086,1.24968823,2790.3,2789.3,1.48534558]
[1645846885526,1.24968823,2790.3,2789.8,0.0053971]
[1645846885726,1.12471941,2790.3,2789.8,0.0053971]
[1645846886323,1.12471941,2790.3,2789.3,1.48534558]
[1645846886525,3.1069,2790.6,2789.9,0.00539699]
[1645846887524,3.1069,2790.6,2789.4,0.00306589]
[1645846887724,1.03026369,2790.1,2789.3,0.98841147]
[1645846888027,3.1069,2790.6,2789.3,1.15848721]
[1645846888424,3.2502,2790.6,2789.3,1.83420895]
[1645846888825,6.7502,2790.6,2789.3,1.83420895]
[1645846889025,1.41145208,2790.4,2789.8,0.0053971]
[1645846890076,1.41145208,2790.4,2789.3,1.83420895]
[1645846890279,1.41145208,2790.4,2790.0,0.00539693]
[1645846891181,1.41145208,2790.4,2789.3,1.83420895]
[1645846891380,1.41145208,2790.4,2790.1,0.00539682]
[1645846892383,1.41145208,2790.4,2789.3,1.83420895]
[1645846892584,1.41145208,2790.4,2790.1,0.00539686]
[1645846893232,3.2502,2790.6,2790.1,0.00539686]
[1645846893433,2.7514,2790.6,2790.1,0.00539686]
[1645846893634,2.7514,2790.6,2789.6,2.78887812]
[1645846893842,1.24889567,2790.7,2790.1,0.00539686]
[1645846894238,1.24889567,2790.7,2790.2,1.08962917]
[1645846894439,0.00539567,2790.7,2790.2,0.19498782]
[1645846894841,5.45088318,2791.1,2789.8,0.4552]
[1645846895041,0.00539583,2790.7,2790.1,0.00539702]
[1645846896042,5.45088318,2791.1,2789.9,0.1433]
[1645846896241,5.45088318,2791.1,2790.1,1.23812742]
[1645846896242,0.00539579,2790.7,2790.1,1.23812742]
[1645846896443,0.00539579,2790.7,2790.2,0.07572165]
[1645846897074,4.3519,2791.1,2790.2,0.07572165]
[1645846897473,0.00539583,2790.7,2790.2,0.07572165]
[1645846898474,1.3014824,2791.0,2790.2,0.07572165]
[1645846898675,0.00539583,2790.7,2790.2,0.07572165]
[1645846899079,0.00539583,2790.7,2790.3,0.1433]
[1645846899278,0.00539583,2790.7,2790.4,0.07572165]
[1645846899476,0.00539583,2790.7,2790.5,0.1433]
[1645846899677,4.3852,2791.6,2790.6,0.07572165]
[1645846899877,4.3852,2791.6,2790.6,1.5196563]
[1645846899878,0.00539587,2790.7,2790.6,1.5196563]
[1645846900077,0.00539587,2790.7,2790.6,1.7274045]
[1645846900725,1.38658773,2791.4,2790.6,1.7274045]
[1645846900927,4.3852,2791.6,2790.7,0.07572165]
[1645846900928,0.00539577,2790.8,2790.7,0.07572165]
[1645846901934,4.3852,2791.6,2790.7,0.07572165]
[1645846902136,1.22061494,2791.4,2790.7,0.07572165]
[1645846902334,0.00539565,2790.9,2790.7,0.07572165]
[1645846903135,1.22061494,2791.4,2790.7,0.07572165]
[1645846903336,4.3852,2791.6,2790.7,0.07572165]
[1645846903736,0.00539559,2790.9,2790.7,0.07572165]
[1645846904387,4.3852,2791.6,2790.7,0.07572165]
[1645846904581,1.35637603,2791.4,2790.7,0.07572165]
[1645846904783,0.00539559,2790.9,2790.7,0.07572165]
[1645846905784,0.00999118,2790.9,2790.7,0.07572165]
[1645846906084,0.00539559,2790.9,2790.7,0.07572165]
[1645846906785,1.29738279,2791.4,2790.7,0.07572165]
[1645846906995,1.45440727,2791.3,2790.7,0.07572165]
[1645846907192,0.00418487,2791.8,2790.9,5.0]
[1645846907492,0.00418487,2792.1,2791.1,0.21994502]
[1645846907693,0.00418487,2792.1,2791.2,0.75144339]
[1645846907889,0.00418487,2792.1,2791.2,1.20972774]
[1645846908126,0.00418487,2792.2,2791.3,0.07572165]
[1645846908326,0.00539468,2791.7,2791.6,1.08818422]
[1645846908527,0.00539468,2791.7,2791.6,1.38324909]
[1645846909126,1.95958487,2792.3,2791.6,1.38324909]
[1645846909326,1.95958487,2792.3,2791.7,0.07572165]
[1645846909529,0.00539463,2791.8,2791.7,0.07572165]
[1645846910326,0.02576014,2792.2,2791.7,0.07572165]
[1645846910526,0.02157527,2792.2,2791.7,0.07572165]
[1645846910730,0.00539451,2791.9,2791.7,0.07572165]
[1645846910929,0.00539451,2791.9,2791.8,0.07572165]
[1645846911327,0.00539451,2791.9,2791.5,0.20276218]
[1645846911328,0.00539451,2791.9,2791.6,0.07572165]
[1645846911527,1.95958487,2792.3,2791.7,0.07572165]
[1645846911775,0.0053944,2792.0,2791.6,1.28395266]
[1645846911974,0.0053944,2792.0,2791.7,0.07572165]
[1645846912377,1.7519,2792.7,2791.7,0.07572165]
[1645846912378,1.64326604,2793.6,2791.8,8.0]
[1645846912578,1.64326604,2793.6,2791.9,3.57572165]
[1645846912579,9.04735075,2793.4,2791.9,3.57572165]
[1645846912778,1.45415075,2793.3,2792.1,15.87]
[1645846912976,3.1302,2793.7,2793.0,0.3]
[1645846913176,1.45187003,2793.6,2792.3,0.25]
[1645846913377,1.45187003,2793.6,2792.3,0.4564428]
[1645846913378,0.4986,2793.5,2792.3,0.4564428]
[1645846913578,0.4986,2793.5,2792.3,0.25]
[1645846913579,0.3555,2793.3,2792.3,0.25]
[1645846913777,0.3555,2793.1,2792.3,0.25]
[1645846913978,0.3555,2793.1,2792.3,0.42223664]
[1645846914179,0.3555,2793.1,2792.1,0.6948827]
[1645846914180,1.45143055,2793.0,2792.1,0.6948827]
[1645846914378,1.45143055,2793.0,2792.2,0.07567382]
[1645846914579,0.3555,2793.1,2792.2,0.07567382]
[1645846916224,0.3555,2793.1,2792.3,1.03976467]
[1645846916424,0.3555,2793.1,2792.1,0.53958534]
[1645846916629,0.00541162,2792.8,2792.3,0.00541266]
[1645846917632,0.3555,2793.3,2792.1,0.72572603]
[1645846917832,0.3555,2793.3,2792.7,1.03826926]
[1645846918032,0.02164271,2793.2,2792.7,1.03826926]
[1645846919036,0.02164271,2793.2,2792.3,0.19870336]
[1645846919272,0.00541128,2793.1,2792.3,0.0054129]
[1645846920080,0.00417472,2793.3,2792.7,1.26890487]
[1645846920275,0.00522893,2792.8,2792.7,1.26890487]
[1645846921075,0.00522893,2792.8,2792.4,0.34571216]
[1645846921275,0.35967472,2793.5,2792.4,0.34571216]
[1645846921276,0.00417472,2793.5,2792.4,0.34571216]
[1645846921575,0.00522888,2792.9,2792.4,0.34571216]
[1645846922384,0.00417472,2793.5,2792.8,1.03591694]
[1645846922585,3.41777472,2793.6,2792.8,1.03591694]
[1645846922782,0.02091259,2793.2,2792.8,1.03591694]
[1645846923734,0.02091259,2793.2,2792.8,1.20273384]
[1645846923937,0.00417472,2793.6,2792.9,0.19670713]
[1645846923938,0.00541122,2793.1,2792.9,0.19670713]
[1645846924533,0.00541122,2793.1,2792.9,4.15190713]
[1645846924733,0.00541122,2793.1,2792.9,5.15190713]
[1645846924932,0.00417472,2794.0,2792.9,1.65190713]
[1645846925134,0.00417472,2794.0,2792.9,5.15190713]
[1645846925333,0.00524094,2793.1,2792.9,5.15190713]
[1645846925533,0.00524094,2793.1,2793.0,3.5]
[1645846925735,0.00444094,2793.1,2793.0,4.95497957]
[1645846925934,0.00444094,2793.1,2793.0,4.8]
[1645846926138,0.00417472,2794.0,2793.5,1.06140441]
[1645846926339,3.23877472,2794.2,2793.6,3.5]
[1645846926538,3.2346,2794.2,2793.5,1.25221883]
[1645846926784,0.00417472,2794.3,2793.5,1.25221883]
[1645846927585,0.00417472,2794.3,2793.6,3.5]
[1645846927796,1.1554,2794.5,2793.6,3.7144372]
[1645846927992,1.983,2795.1,2793.7,0.20084189]
[1645846927993,0.00417472,2794.4,2793.7,0.20084189]
[1645846928191,0.00417472,2794.6,2794.0,0.22769694]
[1645846928389,0.00417472,2795.0,2794.3,5.0]
[1645846928590,9.7111056,2796.2,2794.3,5.0]
[1645846928591,1.25169435,2795.1,2794.5,0.22488102]
[1645846928795,0.02100822,2794.6,2794.3,1.74579783]
[1645846928989,0.02100822,2794.6,2794.3,1.91529599]
[1645846929589,0.37265584,2795.9,2794.3,1.91529599]
[1645846929791,1.21729768,2795.5,2794.3,1.91529599]
[1645846929989,0.0052524,2794.6,2794.3,2.45575964]
[1645846930194,0.0052524,2794.6,2794.3,0.4552]
[1645846930400,0.0052524,2794.6,2794.2,0.15258258]
[1645846930624,0.0052524,2794.6,2794.2,3.5]
[1645846930826,7.80967472,2795.2,2794.3,0.20984569]
[1645846931229,0.00531113,2794.5,2794.3,1.06351343]
[1645846931929,0.00531113,2794.5,2794.2,3.5]
[1645846932130,0.00417472,2794.9,2794.2,3.5]
[1645846932333,0.00531113,2794.5,2794.2,3.5]
[1645846933332,0.00417472,2794.7,2794.0,4.39526642]
[1645846933531,0.4986,2795.1,2794.0,4.39526642]
[1645846933532,0.00500327,2794.5,2794.0,4.39526642]
[1645846934134,0.00500327,2794.5,2794.0,3.21604388]
[1645846934576,0.00417472,2795.0,2794.0,3.21604388]
[1645846934774,0.00475934,2794.4,2794.0,3.21604388]
[1645846935675,0.00417472,2795.0,2794.0,3.21604388]
[1645846935877,0.00475939,2794.3,2794.0,3.21604388]